bitfinex/quotes_ETHUSD_20220311
["timestamp","ask_amount","ask_price","bid_price","bid_amount"]
[1646990690459,0.99135076,2605.0,2604.9,0.1528]
[1646990690656,0.99135076,2605.0,2604.8,0.07577573]
[1646990690858,1.94045076,2605.0,2604.8,0.07577573]
[1646990696547,1.94045076,2605.0,2604.8,1.03509573]
[1646990696948,1.94045076,2605.0,2604.9,0.1464]
[1646990697147,1.94045076,2605.0,2604.9,0.1456]
[1646990697351,0.99135076,2605.0,2604.9,0.1504]
[1646990697547,0.99135076,2605.0,2604.9,0.156]
[1646990697749,0.99135076,2605.0,2604.9,0.148]
[1646990697946,1.01046196,2605.0,2604.9,0.1488]
[1646990698146,1.01046196,2605.0,2604.9,0.1472]
[1646990698349,1.01046196,2605.0,2604.9,0.148]
[1646990698548,1.01046196,2605.0,2604.9,0.1456]
[1646990698751,1.01046196,2605.0,2604.9,0.148]
[1646990698950,1.01046196,2605.0,2604.9,0.1448]
[1646990699149,1.01046196,2605.0,2604.9,0.148]
[1646990699602,1.01046196,2605.0,2604.9,0.1568]
[1646990699802,1.01046196,2605.0,2604.9,0.152]
[1646990700008,1.01046196,2605.0,2604.9,0.1456]
[1646990700205,1.01046196,2605.0,2604.8,0.07577573]
[1646990705956,1.01046196,2605.0,2604.8,1.03509573]
[1646990706357,1.01046196,2605.0,2604.9,0.1576]
[1646990707016,1.01046196,2605.0,2604.9,0.1584]
[1646990710309,1.01046196,2605.0,2604.9,3.6584]
[1646990710506,1.01046196,2605.0,2604.9,3.73594834]
[1646990710745,1.01046196,2605.0,2604.9,0.23834834]
[1646990710746,1.00948062,2605.0,2604.9,0.23834834]
[1646990711145,1.00948062,2605.0,2604.9,3.73754834]
[1646990712153,1.00948062,2605.0,2604.9,0.23754834]
[1646990712548,1.00948062,2605.0,2604.9,0.23354834]
[1646990712748,1.00948062,2605.0,2604.9,0.23754834]
[1646990712952,1.00948062,2605.0,2604.9,0.23674834]
[1646990713147,1.00948062,2605.0,2604.9,0.24074834]
[1646990713353,1.00948062,2605.0,2604.9,0.24154834]
[1646990713553,1.00948062,2605.0,2604.9,0.24074834]
[1646990713754,1.00948062,2605.0,2604.9,0.23754834]
[1646990713954,1.00948062,2605.0,2604.9,0.25312374]
[1646990714354,1.00948062,2605.0,2604.9,0.24992374]
[1646990714597,1.00948062,2605.0,2604.9,0.24192374]
[1646990714796,1.00948062,2605.0,2604.9,0.24112374]
[1646990715003,1.00948062,2605.0,2604.9,0.24032374]
[1646990715202,1.00948062,2605.0,2604.9,0.24112374]
[1646990716002,1.00948062,2605.0,2604.9,0.23952374]
[1646990716204,1.00948062,2605.0,2604.9,0.24112374]
[1646990716602,1.00948062,2605.0,2604.9,0.24672374]
[1646990716803,1.00948062,2605.0,2604.9,0.24752374]
[1646990717004,4.02287691,2605.5,2604.9,0.24752374]
[1646990717005,6.32424722,2606.4,2605.1,5.5]
[1646990717210,6.32424722,2606.4,2605.2,9.0]
[1646990717211,1.00377454,2606.0,2605.2,9.0]
[1646990717509,1.9138652,2606.4,2605.5,3.0]
[1646990717510,0.4674652,2606.4,2605.5,3.0]
[1646990717707,0.00378599,2606.0,2605.6,4.3465]
[1646990717905,0.00378599,2606.0,2605.7,3.4604439]
[1646990718111,0.0186652,2606.4,2605.9,5.57547788]
[1646990718368,1.0,2607.0,2606.1,0.08271371]
[1646990718568,1.0,2607.0,2606.1,0.08184801]
[1646990718769,1.0,2607.0,2606.2,5.08130501]
[1646990718965,1.0,2607.0,2606.4,0.9586]
[1646990719166,1.0,2607.0,2606.5,0.08010978]
[1646990719366,0.95861,2606.8,2606.5,0.08010978]
[1646990721466,0.96269602,2606.8,2606.5,0.08010978]
[1646990721867,0.96269602,2606.8,2606.5,0.25930978]
[1646990722105,0.96269602,2606.8,2606.5,0.26090978]
[1646990722309,0.00408602,2606.8,2606.5,0.25770978]
[1646990722511,0.00817204,2606.8,2606.5,0.27210978]
[1646990722712,0.00408602,2606.8,2606.6,0.0852004]
[1646990722910,0.00408602,2606.8,2606.7,0.95849]
[1646990723314,0.00408602,2606.8,2606.7,1.14809]
[1646990723512,0.00408602,2606.8,2606.7,1.14089]
[1646990723711,0.00408602,2606.8,2606.7,1.13689]
[1646990723911,0.00576369,2606.8,2606.7,1.13849]
[1646990724110,0.00167767,2606.8,2606.7,1.13769]
[1646990724309,0.00167767,2606.8,2606.7,1.13689]
[1646990724511,0.00167767,2606.8,2606.7,1.14169]
[1646990724712,1.0,2607.0,2606.7,1.14249]
[1646990724911,0.00167767,2606.9,2606.8,0.0711136]
[1646990725314,0.00167767,2606.9,2606.8,0.2543136]
[1646990725513,0.00167767,2606.9,2606.8,0.46264397]
[1646990725752,0.00167767,2606.9,2606.8,0.47464397]
[1646990726056,0.00167767,2606.9,2606.8,0.48024397]
[1646990726255,1.00156534,2607.0,2606.8,0.48264397]
[1646990726452,1.00156534,2607.0,2606.8,0.48344397]
[1646990726653,1.00156534,2607.0,2606.9,1.2104]
[1646990726854,1.00156534,2607.0,2606.9,1.2064]
[1646990727256,1.00156534,2607.0,2606.9,0.2056]
[1646990727558,1.0,2607.0,2606.9,0.2064]
[1646990727757,1.0,2607.0,2606.5,3.58071982]
[1646990727758,1.0,2607.0,2606.4,0.462]
[1646990727963,1.0,2607.0,2606.4,0.26455523]
[1646990727964,3.5,2606.9,2606.4,0.26455523]
[1646990728163,0.95866,2606.9,2606.3,1.1504]
[1646990728360,2.25422061,2606.9,2606.1,0.23276882]
[1646990728563,0.95894,2606.8,2606.1,0.22636882]
[1646990728760,0.95894,2606.8,2606.1,0.22876882]
[1646990728961,0.95894,2606.8,2606.1,0.22156882]
[1646990729160,0.96322164,2606.8,2606.1,0.22156882]
[1646990729360,0.96322164,2606.8,2606.1,0.22076882]
[1646990729601,0.96322164,2606.8,2606.1,0.21436882]
[1646990729602,1.85806186,2606.3,2606.1,0.21436882]
[1646990729805,3.13506186,2606.3,2605.8,0.1496]
[1646990730005,3.13506186,2606.3,2605.7,6.21363879]
[1646990730006,3.18899706,2606.3,2605.7,6.21363879]
[1646990730205,0.25,2606.2,2605.8,0.1464]
[1646990730406,0.25,2606.2,2605.8,0.1456]
[1646990730607,2.16817,2606.2,2605.7,1.03953879]
[1646990731211,1.01934726,2605.8,2605.7,1.03953879]
[1646990731406,1.01934726,2605.8,2605.3,0.15388404]
[1646990731407,4.51934726,2605.8,2605.3,0.15388404]
[1646990731610,0.05265656,2605.6,2605.3,0.00379128]
[1646990731807,0.04605968,2605.5,2605.3,0.00379128]
[1646990732913,0.04605968,2605.5,2605.3,0.00344735]
[1646990732914,0.32476891,2605.5,2605.3,0.00344735]
[1646990733379,0.04605968,2605.5,2605.3,0.00344735]
[1646990733680,0.86001663,2605.4,2605.3,0.00344735]
[1646990734279,0.86001663,2605.4,2604.9,0.0163754]
[1646990734480,0.86001663,2605.4,2605.3,0.00363153]
[1646990734880,0.86001663,2605.4,2604.9,0.0163754]
[1646990735080,1.91871,2605.5,2604.9,0.0163754]
[1646990735081,1.05012064,2605.0,2604.9,0.0163754]
[1646990735279,1.6634286,2605.8,2604.9,0.0163754]
[1646990735280,2.27966,2605.1,2604.9,0.0163754]
[1646990735480,0.3608,2605.1,2604.9,0.0163754]
[1646990735679,7.77616,2605.9,2604.9,0.0163754]
[1646990736081,4.27616,2605.9,2604.9,0.0163754]
[1646990736281,0.95931,2605.4,2604.9,1.9347854]
[1646990736487,0.95931,2605.4,2605.3,0.00385267]
[1646990736882,0.75865748,2605.4,2605.3,0.00385267]
[1646990737308,2.87771,2605.7,2605.1,0.08516748]
[1646990737510,0.95901,2605.8,2605.3,0.08177396]
[1646990737708,0.95901,2605.8,2605.3,1.99993396]
[1646990737909,0.95901,2605.8,2605.4,0.08329116]
[1646990738210,0.95901,2605.8,2605.4,0.23369116]
[1646990738408,0.95901,2605.8,2605.4,0.23449116]
[1646990738607,0.95908,2605.7,2605.4,0.23529116]
[1646990738809,0.95908,2605.7,2605.4,0.23289116]
[1646990739012,2.87741,2605.7,2605.4,0.23369116]
[1646990739212,2.87741,2605.7,2605.3,0.00411877]
[1646990739608,2.87741,2605.7,2605.2,0.95914]
[1646990739809,0.95908,2605.7,2605.2,0.95914]
[1646990740010,0.82787422,2605.4,2605.3,0.00393261]
[1646990740607,0.95922,2605.5,2605.3,0.00393261]
[1646990740853,0.95922,2605.5,2605.2,0.95914]
[1646990741055,0.95921,2605.4,2605.2,0.95914]
[1646990741255,0.95901,2605.8,2605.2,0.96294952]
[1646990741459,0.25,2605.8,2605.3,0.1584]
[1646990741663,0.25,2605.8,2605.3,0.1576]
[1646990741861,1.91809,2606.0,2605.3,0.1568]
[1646990742065,1.174,2606.9,2605.4,0.462]
[1646990742066,0.00096,2606.5,2605.4,0.462]
[1646990742260,0.50096,2606.6,2605.5,0.06951822]
[1646990742475,0.0038083,2606.1,2605.8,0.95885]
[1646990742659,0.0038083,2606.1,2605.8,1.04186974]
[1646990742859,0.0038083,2606.1,2605.8,1.19146974]
[1646990743159,0.0038083,2606.1,2605.8,1.19226974]
[1646990743360,0.0038083,2606.1,2605.8,0.1488]
[1646990743361,0.95898,2606.1,2605.8,0.1488]
[1646990743658,0.9603918,2606.1,2605.6,0.1544]
[1646990743862,0.9603918,2606.1,2605.6,0.23098432]
[1646990744061,0.9603918,2606.1,2605.6,0.23018432]
[1646990744266,0.9603918,2606.1,2605.6,2.15208432]
[1646990744524,0.95898,2606.1,2605.8,0.95888]
[1646990744719,0.96037817,2606.1,2605.8,0.95888]
[1646990745118,2.10452521,2606.1,2605.9,0.1568]
[1646990745319,0.96037817,2606.1,2605.9,0.152]
[1646990745520,0.96037817,2606.1,2605.8,0.95888]
[1646990745719,0.95898,2606.1,2605.8,0.95898]
[1646990745921,0.96046594,2606.1,2605.9,0.1448]
[1646990746119,0.96046594,2606.1,2605.9,0.1456]
[1646990746518,2.00413422,2606.1,2605.7,0.24702489]
[1646990746720,2.00413422,2606.1,2605.7,0.09022489]
[1646990746926,2.00264828,2606.1,2605.7,0.09022489]
[1646990747320,2.00687483,2606.1,2605.7,0.09022489]
[1646990747520,2.00687483,2606.1,2605.5,0.1512]
[1646990747820,2.00687483,2606.1,2605.5,0.24382384]
[1646990748022,1.04869981,2605.7,2605.6,0.144]
[1646990748252,2.00783981,2605.7,2605.5,0.23822384]
[1646990748655,0.95914,2605.7,2605.5,0.23822384]
[1646990749057,0.95914,2605.7,2605.5,0.23982384]
[1646990749358,0.95914,2605.7,2605.5,0.23902384]
[1646990749559,0.95914,2605.7,2605.5,0.23982384]
[1646990749757,0.98617208,2605.8,2605.5,1.10703]
[1646990749957,0.98617208,2605.8,2605.5,1.10863]
[1646990750160,0.04941046,2606.7,2606.2,0.25]
[1646990750361,0.04941046,2606.7,2606.1,0.9118669]
[1646990750362,1.00029541,2606.5,2606.1,0.9118669]
[1646990750560,0.98382087,2606.5,2606.1,0.9118669]
[1646990750959,0.98382087,2606.5,2605.9,1.91792]
[1646990750960,3.5,2606.4,2605.9,1.91792]
[1646990751160,3.5,2606.4,2605.6,1.91821]
[1646990751161,0.05130772,2606.3,2605.6,1.91821]
[1646990751459,0.05130772,2606.3,2605.9,0.95912]
[1646990752303,1.10493698,2606.0,2605.9,0.95912]
[1646990753510,0.00410034,2606.2,2605.9,0.95912]
[1646990754111,0.04371253,2606.6,2605.9,0.95912]
[1646990754308,0.04371253,2606.6,2606.0,0.95903]
[1646990754509,0.0041004,2606.2,2606.1,0.9590082]
[1646990755409,1.09459095,2606.3,2606.1,0.9590082]
[1646990755610,1.09870134,2606.3,2606.1,0.9590082]
[1646990755868,1.09870134,2606.3,2606.0,3.03856811]
[1646990756467,1.09459095,2606.3,2606.0,3.03856811]
[1646990756868,1.09870134,2606.3,2606.0,3.03856811]
[1646990757274,1.09870134,2606.3,2606.0,3.03223011]
[1646990757673,1.09459095,2606.3,2606.0,3.03223011]
[1646990758073,1.09870134,2606.3,2606.0,3.03223011]
[1646990758973,1.09459095,2606.3,2606.0,3.03223011]
[1646990759174,1.09459095,2606.3,2606.1,0.9590182]
[1646990759175,0.00408875,2606.3,2606.1,0.9590182]
[1646990759618,0.00408875,2606.3,2606.2,0.09413576]
[1646990759926,0.01731169,2606.8,2606.4,1.9177]
[1646990759927,0.01635169,2606.8,2606.4,1.9177]
[1646990760216,0.99809472,2606.8,2606.4,1.9177]
[1646990760414,0.98174303,2606.8,2606.4,1.9177]
[1646990760621,0.98174303,2606.8,2606.2,0.09413576]
[1646990760817,0.98174303,2606.8,2606.2,0.16070454]
[1646990761016,0.04905238,2606.7,2606.2,0.16070454]
[1646990761217,0.96812941,2606.8,2606.3,1.91769]
[1646990761622,0.00140668,2606.6,2606.3,1.91769]
[1646990762221,0.00140668,2606.6,2606.4,0.06902828]
[1646990762425,0.96812941,2606.8,2606.4,0.06902828]
[1646990762824,0.00415937,2606.6,2606.4,0.06902828]
[1646990763659,0.96812941,2606.8,2606.4,0.06902828]
[1646990764059,0.00415932,2606.6,2606.4,0.06902828]
[1646990764861,0.96812941,2606.8,2606.4,0.06902828]
[1646990765067,3.5,2606.7,2606.4,0.06902828]
[1646990765566,3.5,2606.7,2606.4,0.15148146]
[1646990765764,0.96812941,2606.8,2606.4,0.08881546]
[1646990766164,0.96812941,2606.8,2606.5,0.95902]
[1646990768914,0.97255916,2606.8,2606.5,0.95902]
[1646990769714,0.96812941,2606.8,2606.5,0.95902]
[1646990769914,0.96980035,2606.8,2606.5,0.95902]
[1646990770960,0.96812941,2606.8,2606.5,0.95902]
[1646990771255,0.96980035,2606.8,2606.5,0.95902]
[1646990771459,0.01854611,2606.7,2606.5,0.95902]
[1646990771659,0.01854611,2606.7,2606.6,0.0713006]
[1646990773659,4.5,2606.6,2606.3,2.87667]
[1646990773864,4.5,2606.6,2605.9,0.1918]
[1646990773865,0.04454936,2606.4,2605.9,0.1918]
[1646990774061,0.04454936,2606.4,2605.8,0.1918]
[1646990774259,0.50654936,2606.4,2605.8,0.1918]
[1646990774508,0.51534438,2606.4,2605.8,0.1918]
[1646990774805,1.14440242,2606.2,2605.8,0.1918]
[1646990775007,1.14440242,2606.2,2605.8,2.11008]
[1646990775209,0.05778034,2606.4,2605.8,2.11008]
[1646990775411,0.05778034,2606.4,2605.9,0.959087]
[1646990775611,0.05778034,2606.4,2606.0,0.95916]
[1646990775813,0.05334438,2606.4,2606.0,0.95916]
[1646990776213,0.05778034,2606.4,2606.0,0.95916]
[1646990776813,0.05778034,2606.4,2606.0,1.15096]
[1646990777113,0.05334438,2606.4,2606.0,1.15096]
[1646990777315,0.05778041,2606.4,2606.1,0.9590315]
[1646990778116,0.05334438,2606.4,2606.0,1.91828]
[1646990778563,0.05763073,2606.4,2606.0,1.91828]
[1646990779263,0.05763073,2606.4,2606.0,0.95916]
[1646990779467,0.05334438,2606.4,2606.0,0.95916]
[1646990779664,0.05054167,2606.1,2606.0,0.95916]
[1646990779865,0.05054167,2606.1,2605.9,1.91822]
[1646990780272,0.00428631,2606.4,2605.9,1.91822]
[1646990780666,0.05024356,2606.5,2606.1,1.9182489]
[1646990780867,0.00398153,2606.4,2606.1,1.9182489]
[1646990781566,0.05625528,2606.4,2606.1,1.9182489]
[1646990781766,0.05227375,2606.4,2606.1,1.9182489]
[1646990782014,0.05606629,2606.4,2606.1,1.9182489]
[1646990782921,0.00379254,2606.4,2606.1,1.9182489]
[1646990783117,1.57957976,2606.6,2606.1,1.9182489]
[1646990783322,0.00379254,2606.4,2606.1,3.8362889]
[1646990783520,0.00379254,2606.4,2606.2,0.95897]
[1646990784321,0.06634275,2606.7,2606.3,2.8768972]
[1646990784522,0.00379256,2606.4,2606.3,1.91793]
[1646990785323,0.04211726,2606.9,2606.3,1.91793]
[1646990785530,0.04334403,2606.7,2606.3,1.91793]
[1646990785777,0.00386622,2606.5,2606.3,1.91793]
[1646990785962,0.04512296,2606.9,2606.3,1.91793]
[1646990785963,1.53276367,2606.8,2606.3,1.91793]
[1646990786166,0.0461834,2606.8,2606.3,1.91793]
[1646990786964,1.08059139,2606.8,2606.3,1.91793]
[1646990788169,0.0461834,2606.8,2606.3,1.91793]
[1646990788368,0.0461834,2606.8,2606.3,2.87695]
[1646990789171,0.00443582,2606.7,2606.3,2.87695]
[1646990789809,0.00443582,2606.7,2606.3,1.91793]
[1646990790210,0.0461834,2606.8,2606.3,1.91793]
[1646990790410,0.00443588,2606.6,2606.3,1.91793]
[1646990791411,0.0461834,2606.8,2606.3,1.91793]
[1646990791615,0.01847796,2606.7,2606.3,1.91793]
[1646990791816,0.00443585,2606.6,2606.3,1.91793]
[1646990792615,0.01847796,2606.7,2606.3,1.91793]
[1646990792813,0.00443585,2606.6,2606.3,1.91793]
[1646990793860,0.01847796,2606.7,2606.3,1.91793]
[1646990794059,0.00428946,2606.6,2606.1,1.91803]
[1646990794264,0.46628946,2606.6,2605.9,1.92253063]
[1646990794461,0.46628946,2606.6,2605.9,0.00429063]
[1646990794961,0.46628946,2606.6,2605.8,0.0750063]
[1646990794962,0.462,2606.6,2605.8,0.0750063]
[1646990795360,0.46628934,2606.6,2605.9,0.0042905]
[1646990796159,0.46628934,2606.6,2605.8,0.0750063]
[1646990796160,0.462,2606.6,2605.8,0.0750063]
[1646990796361,1.08431237,2606.3,2605.8,0.0750063]
[1646990796560,1.08431237,2606.3,2605.9,0.0042905]
[1646990797411,1.08431237,2606.3,2605.8,0.0750063]
[1646990797611,1.08431237,2606.3,2605.9,0.00411341]
[1646990798516,1.08431237,2606.3,2605.8,0.0750063]
[1646990798912,1.08431237,2606.3,2605.9,0.00411341]
[1646990799812,1.08431237,2606.3,2605.8,0.0750063]
[1646990800014,1.08431237,2606.3,2605.9,0.00411341]
[1646990800771,0.46611229,2606.6,2605.9,0.00411341]
[1646990800961,0.462,2606.6,2605.8,0.0750063]
[1646990801167,0.02459883,2606.5,2605.9,0.00412078]
[1646990801363,0.02454116,2606.2,2605.9,0.00412078]
[1646990802063,0.04374416,2606.2,2605.9,0.00412078]
[1646990802261,0.04374416,2606.2,2605.8,0.0750063]
[1646990802462,0.04374416,2606.2,2605.9,0.00412076]
[1646990803467,0.04374416,2606.2,2605.8,0.0750063]
[1646990803770,0.04374416,2606.2,2605.9,0.00412076]
[1646990803969,1.07163966,2606.1,2605.9,0.00412076]
[1646990804607,1.07163966,2606.1,2605.6,0.1918]
[1646990804808,1.07163966,2606.1,2605.9,0.00412014]
[1646990805008,1.09084266,2606.1,2605.9,0.00412014]
[1646990805913,1.12530016,2606.1,2605.6,0.1918]
[1646990806114,1.12530016,2606.1,2605.9,0.00412014]
[1646990806918,1.12530016,2606.1,2605.6,0.1918]
[1646990807314,1.12530016,2606.1,2605.9,0.00412014]
[1646990808265,1.12530016,2606.1,2605.6,0.1918]
[1646990808460,1.12530016,2606.1,2605.9,0.00412021]
[1646990809459,1.12530016,2606.1,2605.6,0.1918]
[1646990809862,1.12530016,2606.1,2605.9,0.00412021]
[1646990810662,1.12530016,2606.1,2605.6,0.1918]
[1646990810864,1.12530016,2606.1,2605.9,0.00412021]
[1646990811863,1.12530016,2606.1,2605.6,0.1918]
[1646990812114,1.12530016,2606.1,2605.9,0.00412021]
[1646990812516,0.0536605,2606.1,2605.9,0.00412021]
[1646990813022,0.0536605,2606.1,2605.8,0.07362549]
[1646990813217,0.0536605,2606.1,2605.9,0.00412021]
[1646990814121,0.0536605,2606.1,2605.8,0.07362549]
[1646990814617,0.0536605,2606.1,2605.9,0.00412021]
[1646990815420,6.05e-05,2606.1,2605.8,0.07362549]
[1646990815622,6.05e-05,2606.1,2606.0,0.09011731]
[1646990815874,0.00411901,2606.6,2606.0,0.47461731]
[1646990816780,0.90227428,2606.6,2606.0,0.47461731]
[1646990816975,0.90639348,2606.6,2606.1,2.30208]
[1646990817179,0.90639348,2606.6,2606.2,0.07648104]
[1646990817376,0.0041192,2606.6,2606.2,0.07648104]
[1646990817778,0.02754292,2606.7,2606.2,0.07648104]
[1646990818174,0.00411926,2606.6,2606.2,0.07648104]
[1646990819074,0.02754292,2606.7,2606.3,0.95882]
[1646990819280,0.00411925,2606.6,2606.4,0.08182288]
[1646990820218,0.02754292,2606.7,2606.4,0.08182288]
[1646990820419,0.00411932,2606.6,2606.4,0.08182288]
[1646990821016,0.00411932,2606.6,2606.4,3.5]
[1646990821217,0.00411932,2606.6,2606.5,0.08996989]
[1646990821417,1.0,2607.0,2606.5,0.95877]
[1646990821622,1.0,2607.0,2606.6,0.08131839]
[1646990822018,2.08219238,2607.0,2606.6,0.08131839]
[1646990823021,0.00411903,2606.9,2606.6,0.08131839]
[1646990823974,2.08219238,2607.0,2606.6,0.08131839]
[1646990824173,0.00411908,2606.9,2606.6,0.08131839]
[1646990825174,2.08219238,2607.0,2606.6,0.08131839]
[1646990825375,0.00411908,2606.9,2606.6,0.08131839]
[1646990826374,2.08219238,2607.0,2606.6,0.08131839]
[1646990826576,0.00410228,2606.9,2606.6,0.08131839]
[1646990827208,0.00410228,2606.9,2606.7,0.95882]
[1646990827409,0.00410228,2606.9,2606.8,0.08479242]
[1646990827410,0.83027626,2606.9,2606.8,0.08479242]
[1646990827608,0.82617398,2606.9,2606.8,0.08479242]
[1646990827809,0.83027626,2606.9,2606.8,0.08479242]
[1646990828211,0.83027626,2606.9,2606.5,0.08562678]
[1646990828412,0.00410228,2606.9,2606.5,0.08562678]
[1646990828815,1.0,2607.0,2606.5,0.08562678]
[1646990829016,0.00410233,2606.8,2606.6,1.3431692]
[1646990829216,0.00410233,2606.8,2606.7,3.8845]
[1646990829419,1.0,2607.0,2606.8,2.38698828]
[1646990829619,1.0,2607.0,2606.9,0.09050112]
[1646990829815,1.0,2607.0,2606.9,0.23450112]
[1646990830016,1.0,2607.0,2606.9,0.09050112]
[1646990830416,1.0,2607.0,2606.9,1.04899112]
[1646990831263,1.0,2607.0,2606.9,4.69299112]
[1646990831467,0.0191776,2607.5,2607.1,0.08280952]
[1646990831669,0.0191776,2607.5,2607.2,1.03335304]
[1646990831865,0.0191776,2607.5,2607.3,3.5]
[1646990832273,0.0191776,2607.5,2607.3,0.09055511]
[1646990833067,0.0191776,2607.5,2607.3,3.59055511]
[1646990833770,0.02361257,2607.5,2607.3,3.59055511]
[1646990834612,0.02361257,2607.5,2607.3,3.73695511]
[1646990834613,0.0191776,2607.5,2607.3,3.73695511]
[1646990834815,0.0191776,2607.5,2607.3,3.73935511]
[1646990835011,0.02361257,2607.5,2607.3,3.74015511]
[1646990835210,0.02361257,2607.5,2607.4,0.09016874]
[1646990835613,0.02361257,2607.5,2607.4,3.59016874]
[1646990835813,0.0191776,2607.5,2607.4,3.59016874]
[1646990839965,7.76e-05,2607.5,2607.4,3.59016874]
[1646990840165,1.01680859,2608.0,2607.5,5.5]
[1646990840364,1.01680859,2608.0,2607.6,1.91664]
[1646990840565,1.01680859,2608.0,2607.8,0.07431892]
[1646990840765,1.0,2608.0,2607.8,0.07431892]
[1646990841164,1.0,2608.0,2607.8,1.03265362]
[1646990842019,1.0,2608.0,2607.7,1.91667]
[1646990842215,1.0038299,2608.0,2607.7,1.91667]
[1646990843014,1.0,2608.0,2607.7,1.91667]
[1646990843415,1.00382995,2608.0,2607.7,1.91667]
[1646990844217,1.0,2608.0,2607.7,1.91667]
[1646990844620,1.00382995,2608.0,2607.7,1.91667]
[1646990845421,1.0,2608.0,2607.7,1.91667]
[1646990845857,1.00385904,2608.0,2607.7,1.91667]
[1646990846661,1.0,2608.0,2607.7,1.91667]
[1646990846863,1.00385904,2608.0,2607.7,1.91667]
[1646990847869,1.0,2608.0,2607.7,1.91667]
[1646990848066,1.00385904,2608.0,2607.7,1.91667]
[1646990848264,0.002104,2607.9,2607.7,1.90608679]
[1646990849506,0.62095939,2608.0,2607.7,1.90608679]
[1646990851216,0.04129004,2607.9,2607.6,0.95832]
[1646990851815,0.91365921,2607.9,2607.6,0.95832]
[1646990852117,0.05116145,2607.8,2607.6,0.95832]
[1646990871769,0.05018072,2607.8,2607.6,0.95832]
[1646990872821,1.57903172,2607.7,2607.6,0.95832]
[1646990873220,0.05018072,2607.8,2607.6,0.95832]
[1646990885068,0.87236917,2607.9,2607.6,0.95832]
[1646990886370,1.57891987,2607.8,2607.6,0.95832]
[1646990886774,1.62384878,2607.8,2607.6,0.95832]
[1646990887211,0.87236917,2607.9,2607.6,0.95832]
[1646990887411,1.57891363,2607.8,2607.6,0.95832]
[1646990890522,0.87236917,2607.9,2607.6,0.95832]
[1646990890789,0.87236917,2607.9,2607.7,0.0745086]
[1646990892790,0.62248376,2608.0,2607.8,0.08985579]
[1646990892987,1.0,2608.3,2607.8,0.08985579]
[1646990892988,1.0,2608.3,2607.8,1.04834579]
[1646990893188,1.57871458,2608.2,2607.8,1.04834579]
[1646990893589,1.08300323,2608.1,2607.8,1.04834579]
[1646990893791,1.57871458,2608.0,2607.8,1.04834579]
[1646990895717,1.0,2608.3,2607.8,1.04834579]
[1646990895913,1.57872778,2608.2,2607.8,1.06469519]
[1646990896413,1.57872778,2608.2,2607.9,0.95851]
[1646990897419,1.58317033,2608.2,2607.9,0.95851]
[1646990897616,1.57872778,2608.1,2607.9,0.95851]
[1646990897823,1.52872778,2608.1,2607.9,1.34301]
[1646990898018,0.00444255,2608.2,2608.0,3.96578401]
[1646990898273,1.5,2608.9,2608.1,0.08452444]
[1646990898466,1.5,2608.9,2608.2,1.91659]
[1646990898668,0.01776725,2608.6,2608.4,0.07713728]
[1646990899465,1.064128,2608.8,2608.4,0.07713728]
[1646990899866,0.0016622,2608.6,2608.4,0.07713728]
[1646990900072,0.0016622,2608.6,2608.5,0.08095915]
[1646990900768,1.0,2609.0,2608.5,1.03913915]
[1646990900970,0.0016622,2608.7,2608.5,1.03913915]
[1646990901170,1.0,2609.0,2608.6,0.08678702]
[1646990901371,1.0,2609.0,2608.6,2.96133702]
[1646990901670,1.0,2609.0,2608.8,0.07361269]
[1646990902114,2.03187759,2609.0,2608.8,0.07361269]
[1646990902720,1.0,2609.0,2608.8,0.07361269]
[1646990903921,1.00175438,2609.0,2608.8,0.07361269]
[1646990905774,1.00620045,2609.0,2608.8,0.07361269]
[1646990906163,1.00620045,2609.0,2608.8,3.57361269]
[1646990906363,1.00620045,2609.0,2608.8,0.07361269]
[1646990906769,1.00175438,2609.0,2608.8,0.07361269]
[1646990906967,1.00589114,2609.0,2608.8,0.07361269]
[1646990907976,1.00175438,2609.0,2608.8,0.07361269]
[1646990908174,1.00589114,2609.0,2608.8,3.57361269]
[1646990908373,1.00589114,2609.0,2608.9,0.08506405]
[1646990909174,1.00175438,2609.0,2608.9,0.08506405]
[1646990913970,1.00175438,2609.0,2608.9,0.08424136]
[1646990918219,1.00175438,2609.0,2608.7,1.036723]
[1646990918820,1.00175438,2609.0,2608.7,0.95819]
[1646990919020,1.006196,2609.0,2608.7,0.95819]
[1646990920019,1.00175438,2609.0,2608.7,0.95819]
[1646990920220,1.006196,2609.0,2608.7,0.95819]
[1646990920878,1.006196,2609.0,2608.7,1.0270996]
[1646990921268,1.00175438,2609.0,2608.7,1.0270996]
[1646990921469,1.006196,2609.0,2608.7,1.0270996]
[1646990921673,1.006196,2609.0,2608.7,0.95819]
[1646990922471,1.00175438,2609.0,2608.7,0.95819]
[1646990922674,1.0060461,2609.0,2608.7,0.95819]
[1646990922872,1.0060461,2609.0,2608.7,1.03674598]
[1646990923674,1.00175438,2609.0,2608.7,1.03674598]
[1646990923874,1.0060461,2609.0,2608.7,1.03674598]
[1646990924916,1.00175438,2609.0,2608.7,1.03674598]
[1646990925115,1.0060461,2609.0,2608.7,1.03674598]
[1646990925518,1.0060461,2609.0,2608.9,0.07895145]
[1646990926123,1.00175438,2609.0,2608.7,0.95819]
[1646990926620,1.00175438,2609.0,2608.7,1.91636]
[1646990927621,1.00585657,2609.0,2608.7,1.91636]
[1646990928508,1.00175438,2609.0,2608.7,1.91636]
[1646990928713,1.00585657,2609.0,2608.7,1.91636]
[1646990929707,1.00175438,2609.0,2608.7,1.91636]
[1646990929910,1.00586936,2609.0,2608.7,1.91636]
[1646990930909,1.00175438,2609.0,2608.7,1.91636]
[1646990931109,1.00586936,2609.0,2608.7,1.91636]
[1646990932148,0.85373007,2608.8,2608.7,1.91636]
[1646990934550,1.04760914,2609.0,2608.7,1.91636]
[1646990934754,0.00411421,2608.9,2608.7,1.91636]
[1646990935552,0.00302744,2608.9,2608.7,1.91636]
[1646990935765,2.00359306,2609.0,2608.7,1.91636]
[1646990935966,0.00411416,2608.9,2608.7,1.91636]
[1646990936767,1.04760914,2609.0,2608.7,1.91636]
[1646990936971,1.00175438,2609.0,2608.7,1.91636]
[1646990938373,1.00340754,2609.0,2608.7,1.91636]
[1646990939178,1.00175438,2609.0,2608.7,1.91636]
[1646990940918,1.00175438,2609.0,2608.7,1.91467062]
[1646990943121,1.00619242,2609.0,2608.7,1.91467062]
[1646990943772,1.00619242,2609.0,2608.9,0.0802202]
[1646990943970,1.00619242,2609.0,2608.7,2.00041138]
[1646990943971,1.00175438,2609.0,2608.7,2.00041138]
[1646990944376,1.00619242,2609.0,2608.7,1.91467062]